bitfinex/quotes_ETHUSD_20250611
["timestamp","ask_amount","ask_price","bid_price","bid_amount"]
[1749655379851,0.1752,2841.2,2841.1,6.0415]
[1749655380061,0.04,2841.9,2841.2,0.55]
[1749655380256,0.04,2841.9,2841.3,4.881]
[1749655380457,0.1752,2841.7,2841.4,1.4881]
[1749655380643,0.04,2841.9,2841.4,4.878]
[1749655380847,0.1752,2841.5,2841.4,4.878]
[1749655381057,0.1752,2841.5,2841.1,0.9286]
[1749655381367,0.1752,2841.5,2841.2,3.814]
[1749655381741,0.1752,2841.5,2841.0,0.1752]
[1749655381941,0.8593,2841.7,2841.1,4.878]
[1749655382148,0.1752,2841.3,2841.1,4.878]
[1749655382455,0.1752,2841.3,2841.2,3.814]
[1749655382628,0.1752,2841.3,2841.0,1.11019]
[1749655382839,0.1752,2841.6,2841.3,10.0]
[1749655383039,0.04,2841.9,2841.4,2.3491]
[1749655383389,0.04,2841.9,2841.6,10.0]
[1749655384940,0.04,2841.9,2841.5,0.1752]
[1749655385135,0.04,2841.9,2841.6,5.12943]
[1749655385348,0.1752,2841.8,2841.6,5.12943]
[1749655385685,1.0945,2841.8,2841.0,1.11019]
[1749655385869,1.0945,2841.8,2841.2,3.813]
[1749655386042,1.0945,2841.8,2841.3,3.813]
[1749655386245,0.1752,2841.8,2841.5,10.0]
[1749655386640,0.04,2841.9,2841.5,10.0]
[1749655386858,0.04,2841.9,2841.5,11.3813]
[1749655387383,0.04,2841.9,2841.6,0.8754]
[1749655387555,0.04,2841.9,2841.8,10.0]
[1749655388282,0.04,2841.9,2841.5,1.3813]
[1749655388468,0.04,2841.9,2841.7,10.0]
[1749655389271,0.04,2841.9,2841.8,13.813]
[1749655389587,0.8704,2841.8,2841.0,1.064]
[1749655389772,0.8704,2841.8,2841.1,10.0]
[1749655390086,0.8704,2841.8,2841.2,1.1064]
[1749655390318,0.8704,2841.8,2841.4,10.0]
[1749655390515,0.8704,2841.8,2841.3,3.812]
[1749655392380,0.8704,2841.8,2840.6,0.9093]
[1749655392622,0.8704,2841.8,2841.1,1.064]
[1749655392781,0.8704,2841.8,2840.6,0.9093]
[1749655393122,0.8704,2841.8,2840.7,3.812]
[1749655393427,0.8704,2841.8,2840.8,3.812]
[1749655394221,0.8704,2841.8,2840.6,1.064]
[1749655394424,0.8704,2841.8,2840.5,10.0]
[1749655394425,0.8927,2841.7,2840.5,3.812]
[1749655394607,0.8927,2841.5,2840.5,3.812]
[1749655395588,0.8927,2841.4,2840.3,1.064]
[1749655395789,0.176,2840.5,2840.4,13.812]
[1749655395984,0.8927,2840.6,2840.3,1.35790649]
[1749655396884,0.8927,2840.6,2840.3,1.064]
[1749655397805,0.176,2840.3,2840.1,0.76705298]
[1749655398318,0.8927,2840.6,2840.1,0.76705298]
[1749655401739,0.8868,2840.4,2840.1,0.76705298]
[1749655401960,0.8636,2840.3,2840.1,0.76705298]
[1749655402324,10.36830379,2840.4,2839.3,1.064]
[1749655402325,0.55,2840.2,2839.3,1.064]
[1749655402661,0.8636,2840.1,2839.3,1.064]
[1749655405923,0.8636,2840.1,2839.5,0.66666667]
[1749655407049,0.176,2839.7,2839.6,10.36830379]
[1749655407359,0.176,2839.7,2839.5,0.66666667]
[1749655407508,0.176,2839.7,2839.5,10.66666667]
[1749655407981,0.176,2839.7,2839.5,0.66666667]
[1749655408129,0.8792,2839.6,2839.5,0.66666667]
[1749655409461,0.176,2839.7,2839.5,0.66666667]
[1749655409614,0.176,2839.7,2839.6,10.36830379]
[1749655410156,0.176,2839.7,2839.5,0.66666667]
[1749655412513,0.176,2839.7,2839.6,20.36830379]
[1749655413439,0.176,2839.7,2839.6,10.0]
[1749655413858,0.176,2839.7,2839.6,13.811]
[1749655414052,0.176,2839.7,2839.6,16.49096705]
[1749655415146,0.176,2840.0,2839.7,10.0]
[1749655415353,0.176,2840.0,2839.8,10.36830379]
[1749655415566,0.176,2840.0,2839.9,3.811]
[1749655415862,0.176,2839.9,2839.7,10.0]
[1749655416036,1.29242112,2840.0,2839.5,0.66666667]
[1749655416953,0.9323,2840.0,2839.5,0.66666667]
[1749655417151,0.9323,2840.0,2839.6,10.0]
[1749655417370,0.9323,2840.0,2839.7,3.811]
[1749655417667,0.8939,2840.5,2839.7,3.811]
[1749655417869,0.8939,2840.5,2839.8,10.36830379]
[1749655418053,0.176,2840.0,2839.8,10.36830379]
[1749655418350,0.176,2840.0,2839.9,10.0]
[1749655419553,0.176,2840.0,2839.9,3.811]
[1749655419769,0.176,2840.0,2839.9,13.811]
[1749655421360,0.176,2840.0,2839.5,0.66666667]
[1749655421563,0.8939,2840.5,2839.7,10.0]
[1749655421757,0.8939,2840.5,2839.6,3.81]
[1749655422527,0.176,2839.6,2839.5,0.66666667]
[1749655422731,0.176,2839.6,2839.5,14.47666667]
[1749655424741,0.176,2839.6,2839.5,10.66666667]
[1749655424943,0.176,2839.6,2839.5,14.47666667]
[1749655425142,0.176,2839.6,2839.5,10.66666667]
[1749655427762,0.176,2839.6,2839.5,13.24232372]
[1749655429036,0.8828,2840.4,2839.6,10.0]
[1749655429235,0.8828,2840.4,2839.7,3.809]
[1749655429666,0.176,2839.7,2839.5,0.66666667]
[1749655429871,0.8993,2839.8,2839.6,3.809]
[1749655430937,0.8993,2839.8,2839.5,0.66666667]
[1749655432784,0.8993,2839.8,2839.5,0.66666667]
[1749655434486,0.8993,2839.8,2839.5,4.47566667]
[1749655435256,0.8725,2840.5,2839.5,4.47566667]
[1749655435613,1.22647469,2840.4,2839.5,4.47566667]
[1749655435790,0.8725,2840.5,2839.6,10.9315]
[1749655436090,0.8725,2840.5,2839.6,21.47580379]
[1749655436255,0.176,2840.0,2839.6,21.47580379]
[1749655439054,0.176,2840.0,2839.8,10.0]
[1749655439461,0.176,2840.0,2839.9,13.808]
[1749655440102,0.176,2840.0,2839.9,24.17630379]
[1749655440263,0.34450994,2841.5,2840.0,10.0]
[1749655440264,0.176,2840.2,2840.0,10.0]
[1749655441159,0.176,2840.2,2840.1,13.808]
[1749655441402,0.9142,2841.0,2840.2,10.0]
[1749655441600,0.9142,2841.0,2840.1,14.6886]
[1749655441601,0.176,2840.5,2840.4,10.36830379]
[1749655442895,0.176,2840.5,2840.1,0.8806]
[1749655443114,0.9142,2841.0,2840.2,3.807]
[1749655443665,0.9142,2841.0,2840.0,1.06]
[1749655443666,0.176,2840.2,2840.0,1.06]
[1749655443860,0.9306,2840.3,2840.2,10.0]
[1749655444078,1.4659,2841.3,2840.2,14.7]
[1749655444295,0.55,2841.1,2840.3,4.7]
[1749655444604,0.9159,2841.0,2840.3,4.7]
[1749655445624,0.9159,2841.0,2840.4,3.807]
[1749655446086,0.176,2840.4,2840.3,14.7]
[1749655446465,0.176,2840.4,2840.3,18.507]
[1749655449016,0.8879,2841.4,2840.4,10.0]
[1749655449198,0.8879,2841.4,2840.6,10.0]
[1749655449199,0.176,2840.7,2840.6,10.0]
[1749655449406,0.176,2840.7,2840.6,18.506]
[1749655453105,0.1752,2841.4,2841.0,10.0]
[1749655453320,0.1752,2841.4,2841.2,20.36830379]
[1749655453573,0.1752,2841.4,2841.3,3.805]
[1749655454859,0.1752,2841.4,2841.1,1.06]
[1749655454860,0.1752,2841.4,2841.0,10.0]
[1749655455044,0.1752,2841.4,2841.3,1.06]
[1749655455246,0.1752,2841.4,2841.0,10.0]
[1749655455468,0.1752,2841.4,2841.2,10.0]
[1749655455768,0.1752,2841.4,2841.3,4.865]
[1749655455970,0.1752,2841.3,2840.8,2.35710552]
[1749655456144,0.8533,2841.5,2841.2,1.059]
[1749655456346,0.8533,2841.5,2841.3,3.804]
[1749655456527,0.852,2841.8,2841.3,3.804]
[1749655457264,0.852,2841.8,2841.4,3.804]
[1749655457585,0.1752,2841.3,2840.8,2.35710552]
[1749655457783,0.1752,2841.3,2840.9,4.863]
[1749655458072,0.1752,2841.1,2840.9,6.92784705]
[1749655458372,0.852,2841.8,2841.0,14.863]
[1749655458533,0.852,2841.8,2841.1,10.0]
[1749655458732,0.852,2841.8,2841.0,14.863]
[1749655458733,0.852,2841.8,2841.0,4.863]
[1749655459236,0.1752,2841.3,2841.1,10.0]
[1749655459491,0.1752,2841.3,2841.2,14.862]
[1749655459637,0.852,2841.8,2841.2,14.862]
[1749655461389,0.04,2841.9,2841.3,10.0]
[1749655461591,0.04,2841.9,2841.5,10.0]
[1749655461790,0.04,2841.9,2841.4,4.6846]
[1749655461791,0.04,2841.9,2841.7,10.0]
[1749655461965,0.04,2841.9,2841.8,3.803]
[1749655462294,0.2152,2841.9,2841.8,3.803]
[1749655462590,0.2152,2841.9,2841.8,6.69525257]
[1749655463192,0.04,2841.9,2841.8,6.69525257]
[1749655463753,0.04,2841.9,2841.8,16.69525257]
[1749655465597,0.04,2841.9,2841.8,27.06355636]
[1749655466022,0.04,2841.9,2841.8,17.75325257]
[1749655466226,0.04,2841.9,2841.8,12.89225257]
[1749655467228,0.04,2841.9,2841.8,12.00175257]
[1749655467427,0.04,2841.9,2841.8,3.801]
[1749655467729,0.04,2841.9,2841.8,4.6718]
[1749655468202,0.04,2841.9,2841.8,0.8708]
[1749655468402,0.04,2841.9,2841.8,4.86]
[1749655468604,0.04,2841.9,2841.5,0.9022]
[1749655468818,0.04,2841.9,2841.6,14.86]
[1749655469197,0.04,2841.9,2841.1,3.51967432]
[1749655469198,0.04,2841.9,2841.7,5.759]
[1749655469397,0.04,2841.9,2841.7,4.7]
[1749655469902,0.04,2841.9,2841.8,3.801]
[1749655470100,0.04,2841.9,2841.8,4.7]
[1749655470299,0.9499,2841.9,2841.8,8.5]
[1749655471715,0.04,2841.9,2841.8,8.5]
[1749655473420,0.04,2841.9,2841.8,3.8]
[1749655473822,0.9221,2841.9,2841.8,3.8]
[1749655474042,0.9221,2841.9,2841.5,4.7]
[1749655475638,0.9221,2841.9,2841.6,3.8]
[1749655476010,0.04,2841.9,2841.6,3.8]
[1749655476211,0.04,2841.9,2841.6,5.68683038]
[1749655476513,0.04,2841.9,2841.8,10.36830379]
[1749655476708,0.04,2841.9,2841.8,33.44320026]
[1749655476911,0.04,2842.9,2842.3,0.55]
[1749655477153,0.04,2842.9,2842.8,24.80416243]
[1749655477310,0.04,2842.9,2842.8,31.26028462]
[1749655477816,0.04,2843.9,2843.5,3.51679268]
[1749655478019,0.04,2843.9,2843.8,20.36830379]
[1749655478335,0.04,2843.9,2843.8,14.855]
[1749655478534,0.04,2843.9,2843.8,10.0]
[1749655478860,0.1752,2843.8,2843.6,3.799]
[1749655479157,0.9369,2843.9,2843.3,10.0]
[1749655479368,0.9369,2843.9,2842.8,1.60112219]
[1749655479369,0.9369,2843.9,2843.4,3.799]
[1749655479526,0.04,2843.9,2843.6,10.0]
[1749655479725,0.04,2843.9,2843.8,10.0]
[1749655480042,0.04,2843.9,2843.8,13.799]
[1749655480846,0.04,2843.9,2843.8,4.854]
[1749655481046,0.04,2843.9,2843.8,3.798]
[1749655481414,0.04,2843.9,2843.8,13.798]
[1749655481614,0.04,2843.9,2843.8,15.1778]
[1749655482058,0.04,2843.9,2843.8,16.2338]
[1749655482224,0.04,2843.9,2843.8,10.0]
[1749655482428,0.2152,2843.9,2843.8,14.854]
[1749655482639,0.2152,2843.9,2843.8,10.0]
[1749655482855,0.2152,2843.9,2843.8,14.854]
[1749655483065,0.2152,2843.9,2843.8,10.0]
[1749655483440,0.2152,2843.9,2843.8,3.797]
[1749655483842,0.2152,2843.9,2843.5,10.0]
[1749655484156,0.1752,2843.4,2843.0,0.8829]
[1749655484359,0.04,2843.9,2843.2,10.0]
[1749655484557,0.1752,2843.4,2843.3,15.2823]
[1749655486167,0.04,2843.9,2843.4,10.55]
[1749655486369,0.04,2843.9,2843.6,10.0]
[1749655486533,0.04,2843.9,2843.8,10.0]
[1749655487158,0.04,2843.9,2843.8,4.852]
[1749655487756,0.04,2843.9,2843.3,0.9188]
[1749655487942,0.04,2843.9,2843.7,1.056]
[1749655488156,0.04,2843.9,2843.8,13.796]
[1749655488531,0.04,2843.9,2843.6,0.854]
[1749655488744,0.04,2843.9,2843.8,10.0]
[1749655489056,0.04,2843.9,2843.6,0.191]
[1749655489263,0.04,2843.9,2842.7,0.854]
[1749655489264,0.9206,2843.8,2842.7,0.854]
[1749655489440,0.9206,2843.8,2842.8,9.72736726]
[1749655489788,0.04,2843.9,2843.3,0.9013]
[1749655489965,0.04,2843.9,2843.6,3.51666901]
[1749655490282,0.04,2843.9,2843.8,10.0]
[1749655490484,0.04,2843.9,2843.8,13.51642168]
[1749655490631,0.04,2843.9,2843.8,18.21642168]
[1749655490866,0.04,2843.9,2843.8,14.7]
[1749655491071,0.04,2843.9,2843.8,19.11952168]
[1749655491298,0.04,2843.9,2843.8,28.05888296]
[1749655491601,0.04,2843.9,2843.8,28.60888296]
[1749655492406,0.04,2844.9,2844.5,0.71367256]
[1749655492626,0.04,2844.9,2844.7,10.0]
[1749655492915,0.04,2844.9,2844.8,3.795]
[1749655493070,0.04,2844.9,2844.8,1.56997]
[1749655493274,0.04,2844.9,2844.8,4.85]
[1749655493711,0.8958,2845.4,2844.8,4.85]
[1749655494310,0.8958,2845.4,2844.9,10.0]
[1749655494513,0.8958,2845.4,2844.5,0.71367256]
[1749655494679,0.8958,2845.4,2844.7,10.0]
[1749655494875,0.8958,2845.4,2844.7,11.485]
[1749655495084,0.8958,2845.4,2844.8,3.794]
[1749655497018,0.8958,2845.4,2844.6,0.71421553]
[1749655497381,0.8958,2845.4,2844.7,3.794]
[1749655498478,0.8958,2845.4,2844.6,2.62511553]
[1749655498679,0.1752,2845.1,2844.8,10.0]
[1749655498891,0.04,2845.9,2845.0,10.0]
[1749655500028,0.04,2845.9,2845.2,10.0]
[1749655500229,0.04,2845.9,2844.9,0.8559]
[1749655500230,0.8777,2845.8,2844.9,0.8559]
[1749655500731,0.8777,2845.8,2845.0,4.848]
[1749655500946,0.8777,2845.8,2844.7,0.26251155]
[1749655501084,0.8777,2845.8,2844.6,1.64351553]
[1749655501085,0.8777,2845.8,2845.0,1.055]
[1749655501533,0.8777,2845.8,2844.6,1.64351553]
[1749655501683,0.04,2845.9,2844.6,0.71421553]
[1749655501684,7.82906467,2845.4,2844.6,0.71421553]
[1749655501886,0.9096,2845.3,2844.2,3.792]
[1749655502187,0.9096,2845.1,2844.3,3.792]
[1749655502420,0.9096,2845.1,2843.9,1.055]
[1749655502421,0.9096,2845.1,2844.2,3.792]
[1749655502909,7.82906467,2844.5,2843.2,1.053]
[1749655503111,0.8518,2844.4,2843.3,4.08559638]
[1749655503321,0.8518,2844.3,2843.4,0.8074457]
[1749655504106,0.8518,2844.3,2843.4,4.08658606]
[1749655505088,0.8518,2844.3,2843.5,10.0]
[1749655505681,0.8518,2844.3,2843.4,0.29358606]
[1749655505882,0.8518,2844.3,2843.5,3.792]
[1749655506297,0.55,2844.2,2843.4,0.29358606]
[1749655506493,10.34969529,2844.8,2843.4,0.29358606]
[1749655506494,0.874,2844.1,2843.4,0.29358606]
[1749655506827,0.874,2844.1,2843.5,0.40855861]
[1749655507813,0.8908,2845.0,2843.5,0.70213434]
[1749655508013,1.24067091,2845.0,2843.5,0.70213434]
[1749655508200,0.8908,2844.9,2843.6,0.29356541]
[1749655508795,0.1752,2844.1,2843.6,0.46876541]
[1749655510100,0.8456,2844.3,2843.7,4.845]
[1749655510338,0.1752,2843.9,2843.8,3.792]
[1749655510702,0.1752,2843.9,2843.8,4.37560392]
[1749655511111,0.87386647,2845.2,2843.8,14.37560392]
[1749655511112,0.8899,2844.7,2843.8,14.37560392]
[1749655511343,0.1752,2844.1,2843.9,10.0]
[1749655511520,0.1752,2844.1,2844.0,4.7]
[1749655512239,0.1752,2844.5,2844.0,4.8752]
[1749655512441,0.1752,2844.5,2844.1,6.18752]
[1749655512650,0.8899,2844.7,2844.1,4.7]
[1749655512952,0.8899,2844.7,2843.7,0.70686701]
[1749655512953,0.9191,2844.4,2843.7,0.70686701]
[1749655513108,0.9191,2844.2,2843.7,0.70686701]
[1749655514358,0.55,2843.9,2843.1,0.04]
[1749655514507,0.8587,2843.6,2843.1,0.04]
[1749655514706,0.86877647,2843.5,2843.1,0.04]
[1749655514906,0.8587,2843.6,2843.1,0.04]
[1749655515930,0.8835,2843.5,2843.1,0.04]
[1749655517162,0.55,2843.3,2843.1,0.04]
[1749655517345,0.9147,2843.2,2843.1,0.04]
[1749655517660,1.4647,2843.2,2843.1,0.04]
[1749655517815,2.41247647,2843.2,2843.1,0.04]
[1749655519860,1.4281,2843.2,2843.1,0.04]
[1749655521322,0.8781,2843.2,2843.1,0.04]
[1749655522356,0.35284697,2843.7,2843.1,0.04]
[1749655522357,0.8752,2843.6,2843.1,0.04]
[1749655522715,0.9112,2843.5,2843.1,0.04]
[1749655522922,7.82906467,2843.6,2843.1,0.04]
[1749655522923,0.9112,2843.3,2843.1,0.04]
[1749655523321,8.37906467,2843.2,2843.1,0.04]
[1749655523631,19.29026467,2843.2,2843.1,0.04]
[1749655524934,19.29026467,2843.2,2841.4,10.1303]
[1749655524935,0.8752,2843.0,2841.4,10.157]
[1749655525140,0.55,2842.5,2841.4,1.054]
[1749655525463,0.8752,2842.4,2841.4,1.054]
[1749655525959,0.8752,2842.4,2841.7,0.8983]
[1749655527026,11.92902647,2843.1,2841.7,0.8983]
[1749655527027,1.92902647,2843.1,2841.7,0.8983]
[1749655527229,0.848,2843.0,2841.7,10.8983]
[1749655527526,0.848,2843.0,2841.4,5.7228]
[1749655527837,10.0,2843.2,2841.1,11.9698]
[1749655527838,0.55,2842.6,2841.1,11.9698]
[1749655528181,0.848,2842.5,2841.1,11.9698]
[1749655528336,0.848,2842.5,2841.1,1.9698]
[1749655528542,0.848,2842.5,2841.2,4.7]
[1749655528543,0.55,2842.4,2841.2,4.7]
[1749655528743,0.8974,2842.6,2841.2,4.7]
[1749655528949,0.87264647,2842.5,2841.2,4.7]
[1749655529265,0.8974,2842.6,2841.2,4.7]
[1749655529825,0.55,2842.5,2841.2,4.7]
[1749655530063,0.9338,2842.4,2841.3,10.0]
[1749655531331,0.9338,2842.4,2841.2,5.754]
[1749655531527,1.3992,2842.2,2841.2,5.754]
[1749655532367,0.8492,2842.2,2841.2,5.754]
[1749655532568,0.8492,2842.2,2841.3,15.6188]
[1749655532744,0.8504,2842.8,2841.3,19.13830009]
[1749655532946,0.8504,2842.8,2841.4,8.2193285]
[1749655533183,0.8504,2842.8,2841.9,0.863]
[1749655534939,0.1752,2842.2,2841.9,10.863]
[1749655535146,0.8522,2843.6,2842.2,10.9227]
[1749655535378,0.1752,2842.6,2842.4,10.0]
[1749655535673,0.1752,2842.6,2842.4,14.7]
[1749655536280,0.1752,2842.6,2842.5,3.793]
[1749655536484,0.1752,2842.6,2842.5,5.6423]
[1749655536857,0.1752,2842.6,2842.4,14.7]
[1749655537058,0.8871,2843.4,2842.4,4.7]
[1749655537262,0.1752,2842.4,2842.2,5.7677]
[1749655537450,0.8871,2842.8,2842.2,1.052]
[1749655537790,0.9107,2843.1,2842.2,1.052]
[1749655538387,0.8851,2843.4,2842.3,0.8449]
[1749655538592,0.1752,2842.4,2842.3,0.8449]
[1749655538966,0.1752,2842.4,2842.1,0.04]
[1749655539171,0.8851,2842.6,2842.1,0.04]
[1749655539776,7.82906467,2842.9,2842.1,0.04]
[1749655539777,0.55,2842.5,2842.1,0.04]
[1749655540091,0.8667,2842.4,2842.1,0.04]
[1749655540288,1.459,2842.2,2842.1,0.04]
[1749655541899,1.4527,2842.2,2842.1,0.04]
[1749655543368,1.81286248,2842.2,2842.1,0.04]
[1749655543574,1.4267,2842.1,2841.1,0.04]
[1749655543879,0.8908,2841.5,2841.1,0.04]
[1749655544077,0.55,2841.4,2841.1,0.04]
[1749655544514,7.82906467,2841.3,2841.1,0.04]
[1749655544670,1.4533,2841.2,2841.1,0.04]
[1749655545010,2.71073237,2841.2,2841.1,0.04]
[1749655545166,2.38153647,2841.2,2841.1,0.04]
[1749655545368,1.83153647,2841.2,2841.1,0.04]
[1749655545569,1.4533,2841.2,2841.1,0.04]
[1749655545806,1.4496,2841.2,2841.1,0.04]
[1749655546227,1.77881076,2841.2,2841.1,0.04]
[1749655546374,1.4496,2841.2,2841.1,0.04]
[1749655546685,12.75686647,2841.2,2841.1,0.04]
[1749655546891,13.08608509,2841.2,2841.1,0.04]
[1749655547132,13.0860558,2841.2,2841.1,0.04]
[1749655547433,13.08605582,2841.2,2841.1,0.04]
[1749655547631,12.75686647,2841.2,2841.1,0.04]
[1749655547829,12.95439694,2841.2,2841.1,0.04]
[1749655548038,13.28361037,2841.2,2841.1,0.04]
[1749655548323,12.75686647,2841.2,2841.1,0.04]
[1749655548524,13.28363369,2841.2,2841.1,0.04]
[1749655548730,12.95440539,2841.2,2841.1,0.04]
[1749655548891,12.75686647,2841.2,2841.1,0.04]
[1749655549223,12.75686647,2841.2,2840.1,0.04]
[1749655549224,0.55,2840.9,2840.1,0.04]
[1749655549526,9.24636467,2840.2,2840.1,0.04]
[1749655550228,9.57568164,2840.2,2840.1,0.04]
[1749655550403,9.24636467,2840.2,2840.1,0.04]
[1749655550604,9.57567893,2840.2,2840.1,0.04]
[1749655550818,10.58333256,2840.2,2840.1,0.04]
[1749655551192,2.75426789,2840.2,2840.1,0.04]
[1749655551395,7.82906467,2840.5,2840.1,0.04]
[1749655551396,10.55,2840.4,2840.1,0.04]
[1749655551936,1.45,2840.2,2840.1,0.04]
[1749655553343,0.55,2839.9,2839.1,0.04]
[1749655553494,0.905,2839.2,2839.1,0.04]
[1749655553826,0.905,2839.5,2839.1,0.04]
[1749655554632,0.55,2839.4,2839.1,0.04]
[1749655555298,0.905,2839.5,2839.1,0.04]
[1749655555500,0.55,2839.4,2839.1,0.04]
[1749655555702,0.55,2839.2,2839.1,0.04]
[1749655556818,4.345,2839.2,2839.1,0.04]
[1749655557331,5.1138,2839.2,2839.1,0.04]
[1749655557520,15.1138,2839.2,2839.1,0.04]
[1749655558030,0.55,2839.0,2838.1,0.04]
[1749655558234,0.55,2838.5,2838.1,0.04]
[1749655558432,0.55,2838.8,2838.1,0.04]
[1749655558817,3.795,2838.7,2838.1,0.04]
[1749655559016,0.4345,2838.6,2838.1,0.04]
[1749655559217,0.55,2838.3,2838.1,0.04]
[1749655559524,8.37906467,2838.2,2838.1,0.04]
[1749655560431,10.55,2838.1,2837.1,0.04]
[1749655560745,22.97216467,2838.2,2836.1,0.2162073]
[1749655560746,0.55,2837.1,2836.1,0.2162073]
[1749655561052,8.37906467,2836.9,2836.1,0.2162073]
[1749655561256,8.37906467,2836.9,2836.1,0.04]
[1749655561466,0.17405153,2837.1,2836.1,0.04]
[1749655561761,2.66702482,2838.1,2836.6,0.81]
[1749655561918,0.4345,2838.6,2837.1,0.81]
[1749655561919,0.8209,2838.5,2837.1,0.81]
[1749655562610,1.828,2839.1,2837.4,10.8318]
[1749655562805,7.82906467,2838.2,2837.5,2.69788647]
[1749655563005,7.82906467,2837.8,2837.0,0.783]
[1749655563248,0.176,2837.0,2836.2,0.783]
[1749655563459,0.55,2836.9,2836.2,0.783]
[1749655563609,0.176,2836.2,2836.1,0.04]
[1749655565136,0.52637698,2836.2,2836.1,0.04]
[1749655565336,0.176,2836.2,2836.1,0.04]
[1749655565911,12.35206467,2836.2,2836.1,0.04]
[1749655566199,13.94359495,2836.2,2836.1,0.04]
[1749655566725,0.176,2836.2,2836.1,0.04]
[1749655568966,0.34434654,2837.7,2836.2,3.52577482]
[1749655569269,0.176,2836.5,2836.4,10.0]
[1749655569561,0.176,2836.5,2836.3,0.7761]
[1749655569858,14.351,2837.7,2836.3,0.7761]
[1749655570053,15.27123647,2837.7,2836.3,0.7761]
[1749655570260,0.55,2837.4,2836.3,0.7761]
[1749655570833,10.0,2837.5,2836.3,0.7761]
[1749655571210,0.8401,2838.9,2837.1,10.0]
[1749655571359,0.8401,2838.9,2837.7,0.7549]
[1749655571730,0.8401,2838.9,2837.8,10.0]
[1749655571731,0.04,2838.9,2837.8,10.0]
[1749655572134,0.04,2838.9,2837.7,10.7549]
[1749655572335,0.04,2838.9,2837.7,4.27887398]
[1749655572538,0.04,2838.9,2837.8,1.4278874]
[1749655572974,0.04,2838.9,2838.2,3.52327916]
[1749655573128,0.04,2838.9,2838.3,0.8031]
[1749655574787,0.04,2838.9,2838.3,8.63216467]
[1749655575084,0.04,2838.9,2838.4,13.52303733]
[1749655575228,0.04,2838.9,2838.5,2.06006517]
[1749655575433,0.04,2838.9,2838.6,10.0]
[1749655575665,0.04,2838.9,2838.3,12.15537457]
[1749655575666,0.04,2838.9,2838.3,0.8031]
[1749655576773,0.04,2838.9,2838.4,1.053]
[1749655577281,0.04,2838.9,2838.5,10.0]
[1749655577492,0.04,2838.9,2838.3,0.8031]
[1749655577775,0.04,2838.9,2837.9,1.8537]
[1749655577933,0.04,2838.9,2837.9,5.37736141]
[1749655578277,0.04,2838.9,2837.9,1.8537]
[1749655578439,0.04,2838.9,2837.9,2.03907]
[1749655578972,0.04,2838.9,2837.9,0.98607]
[1749655579135,0.04,2838.9,2837.9,1.8537]
[1749655579835,0.04,2838.9,2837.9,0.8007]
[1749655580357,0.04,2838.9,2837.7,1.053]
[1749655580359,0.7789,2838.7,2837.7,1.053]
[1749655580668,0.176,2837.7,2837.1,0.7504]
[1749655580853,0.55,2838.6,2837.1,0.7504]
[1749655581053,0.176,2837.2,2837.1,0.7504]
[1749655581253,0.176,2837.2,2837.1,1.31214]
[1749655582953,0.7789,2838.7,2837.1,1.86214]
[1749655583289,0.04,2838.9,2838.5,3.5229387]
[1749655583449,0.04,2838.9,2838.6,3.822]
[1749655583782,0.04,2838.9,2838.1,0.8326]
[1749655584766,0.851,2838.9,2838.1,0.8326]
[1749655584974,0.851,2838.9,2837.8,4.53213419]
[1749655585194,0.851,2838.9,2836.2,8.2258434]
[1749655585195,0.176,2837.8,2837.4,4.875]
[1749655585395,0.35951623,2838.4,2837.2,0.7932]
[1749655585592,0.55,2838.6,2837.2,0.7932]
[1749655586108,0.55,2838.6,2837.0,3.825]
[1749655586109,0.176,2837.2,2837.0,3.825]
[1749655586400,0.799,2838.5,2837.2,10.0]
[1749655586401,0.176,2837.4,2837.2,10.0]
[1749655586578,0.176,2837.4,2837.3,0.7538]
[1749655588706,0.799,2838.5,2837.3,0.7538]
[1749655588707,0.176,2837.6,2837.3,0.7538]
[1749655589089,0.176,2837.4,2837.3,0.7538]
[1749655591706,0.799,2838.5,2837.3,0.7538]
[1749655592003,0.176,2837.7,2837.3,0.7538]
[1749655592305,0.176,2837.7,2837.3,1.84678]
[1749655592897,0.799,2838.5,2837.3,1.84678]
[1749655593098,0.176,2837.4,2837.3,0.7538]
[1749655593287,0.176,2837.4,2837.3,14.5648]
[1749655593888,0.799,2838.5,2837.4,10.0]
[1749655594085,0.176,2837.6,2837.3,4.5648]
[1749655594416,0.799,2838.5,2837.4,10.0]
[1749655594781,0.176,2837.4,2837.0,1.22114]
[1749655595118,0.176,2837.4,2837.2,11.06]
[1749655595678,0.176,2837.4,2837.0,0.7588]
[1749655596010,0.176,2837.1,2837.0,1.06]